[Event "Schack-SM 2024: Mastarklassen-elit"]
[Site "Fortnox Arena, Hejaregatan 5, Vaxjo, Sweden"]
[Date "2024.06.29"]
[Round "1.3"]
[White "Akesson, Ralf"]
[Black "Sorensen, Hampus"]
[Result "1/2-1/2"]
[TimeControl "90 minutes for 40 moves + 30 minutes for the rest of the game + 30 seconds per move from move one."]
[WhiteTitle "GM"]
[BlackTitle "IM"]
[WhiteElo "2360"]
[BlackElo "2404"]

1. d4 {[%clk 01:30:49]} {[%emt 00:00:11]} d5 {[%clk 01:30:44]} {[%emt
00:00:15]} 2. c4 {[%clk 01:31:05]} {[%emt 00:00:15]} c6 {[%clk 01:31:01]}
{[%emt 00:00:12]} 3. Nf3 {[%clk 01:31:08]} {[%emt 00:00:27]} Nf6 {[%clk
01:31:20]} {[%emt 00:00:11]} 4. e3 {[%clk 01:30:57]} {[%emt 00:00:42]} e6
{[%clk 01:31:32]} {[%emt 00:00:18]} 5. Nc3 {[%clk 01:30:20]} {[%emt 00:01:07]}
Nbd7 {[%clk 01:31:50]} {[%emt 00:00:10]} 6. Qc2 {[%clk 01:29:08]} {[%emt
00:01:43]} Bd6 {[%clk 01:31:46]} {[%emt 00:00:33]} 7. Be2 {[%clk 01:20:48]}
{[%emt 00:08:50]} O-O {[%clk 01:31:53]} {[%emt 00:00:24]} 8. b3 {[%clk
01:20:48]} {[%emt 00:00:31]} b6 {[%clk 01:32:06]} {[%emt 00:00:16]} 9. O-O
{[%clk 01:20:25]} {[%emt 00:00:53]} Bb7 {[%clk 01:32:24]} {[%emt 00:00:12]} 10.
Bb2 {[%clk 01:20:44]} {[%emt 00:00:12]} Qe7 {[%clk 01:32:25]} {[%emt 00:00:28]}
11. Rad1 {[%clk 01:19:40]} {[%emt 00:01:35]} Rad8 {[%clk 01:32:32]} {[%emt
00:00:23]} 12. Rfe1 {[%clk 01:17:14]} {[%emt 00:02:55]} Rfe8 {[%clk 01:32:18]}
{[%emt 00:00:44]} 13. h3 {[%clk 01:11:07]} {[%emt 00:06:36]} Bb8 {[%clk
01:28:16]} {[%emt 00:04:33]} 14. e4 {[%clk 00:55:41]} {[%emt 00:15:55]} Nxe4
{[%clk 01:20:46]} {[%emt 00:08:01]} 15. Nxe4 {[%clk 00:55:57]} {[%emt
00:00:14]} dxe4 {[%clk 01:21:12]} {[%emt 00:00:04]} 16. Qxe4 {[%clk 00:56:05]}
{[%emt 00:00:22]} Nf8 {[%clk 01:21:20]} {[%emt 00:00:21]} 17. Qe3 {[%clk
00:48:40]} {[%emt 00:07:56]} Ng6 {[%clk 01:16:29]} {[%emt 00:05:21]} 18. Bf1
{[%clk 00:47:19]} {[%emt 00:01:51]} Qc7 {[%clk 00:54:59]} {[%emt 00:21:59]} 19.
g3 {[%clk 00:39:55]} {[%emt 00:07:55]} Re7 {[%clk 00:51:04]} {[%emt 00:04:25]}
20. h4 {[%clk 00:37:54]} {[%emt 00:02:30]} f5 {[%clk 00:46:23]} {[%emt
00:05:11]} 21. h5 {[%clk 00:32:25]} {[%emt 00:06:00]} Nf8 {[%clk 00:37:40]}
{[%emt 00:09:12]} 22. Ne5 {[%clk 00:27:34]} {[%emt 00:05:21]} Nd7 {[%clk
00:35:56]} {[%emt 00:02:14]} 23. Nd3 {[%clk 00:14:23]} {[%emt 00:13:42]} Nf6
{[%clk 00:28:03]} {[%emt 00:08:24]} 24. Nf4 {[%clk 00:11:15]} {[%emt 00:03:38]}
Qc8 {[%clk 00:22:56]} {[%emt 00:05:37]} 25. Be2 {[%clk 00:07:26]} {[%emt
00:04:19]} Rde8 {[%clk 00:21:03]} {[%emt 00:02:23]} 26. Bf3 {[%clk 00:04:44]}
{[%emt 00:03:13]} Ng4 {[%clk 00:10:04]} {[%emt 00:11:29]} 27. Bxg4 {[%clk
00:04:50]} {[%emt 00:00:23]} fxg4 {[%clk 00:10:32]} {[%emt 00:00:01]} 28. h6
{[%clk 00:05:05]} {[%emt 00:00:16]} c5 {[%clk 00:02:54]} {[%emt 00:08:08]} 29.
d5 {[%clk 00:04:52]} {[%emt 00:00:43]} e5 {[%clk 00:01:06]} {[%emt 00:02:18]}
30. Nh5 {[%clk 00:04:12]} {[%emt 00:01:09]} Qf5 {[%clk 00:00:39]} {[%emt
00:00:59]} 31. Nxg7 {[%clk 00:04:12]} {[%emt 00:00:29]} Rxg7 {[%clk 00:01:03]}
{[%emt 00:00:06]} 32. hxg7 {[%clk 00:04:36]} {[%emt 00:00:06]} Qh5 {[%clk
00:01:32]} {[%emt 00:00:01]} 33. Bc1 {[%clk 00:02:28]} {[%emt 00:02:38]} Kxg7
{[%clk 00:01:51]} {[%emt 00:00:12]} 34. Qg5+ {[%clk 00:02:29]} {[%emt
00:00:28]} Qxg5 {[%clk 00:02:17]} {[%emt 00:00:04]} 35. Bxg5 {[%clk 00:02:51]}
{[%emt 00:00:08]} Bd6 {[%clk 00:01:42]} {[%emt 00:01:05]} 36. Bd2 {[%clk
00:02:15]} {[%emt 00:01:06]} Bc8 {[%clk 00:01:49]} {[%emt 00:00:23]} 37. Bc3
{[%clk 00:01:42]} {[%emt 00:01:02]} Kg6 {[%clk 00:01:31]} {[%emt 00:00:49]} 38.
Re3 {[%clk 00:01:58]} {[%emt 00:00:15]} Bf5 {[%clk 00:01:29]} {[%emt 00:00:31]}
39. Kg2 {[%clk 00:00:45]} {[%emt 00:01:43]} h5 {[%clk 00:01:34]} {[%emt
00:00:25]} 40. Rde1 {[%clk 00:00:35]} {[%emt 00:00:40]} e4 {[%clk 00:01:46]}
{[%emt 00:00:18]} 41. Rh1 {[%clk 00:00:35]} {[%emt 00:00:29]} Be7 {[%clk
00:24:10]} {[%emt 00:08:07]} 42. Rd1 {[%clk 00:28:06]} {[%emt 00:02:59]} Bd6
{[%clk 00:08:57]} {[%emt 00:15:42]} 43. Kf1 {[%clk 00:28:01]} {[%emt 00:00:35]}
Re7 {[%clk 00:09:12]} {[%emt 00:00:16]} 44. Ke2 {[%clk 00:28:11]} {[%emt
00:00:18]} Rh7 {[%clk 00:05:44]} {[%emt 00:03:59]} 45. Rh1 {[%clk 00:27:50]}
{[%emt 00:00:51]} Rb7 {[%clk 00:04:29]} {[%emt 00:01:46]} 46. Kd2 {[%clk
00:24:54]} {[%emt 00:03:26]} Rc7 {[%clk 00:04:07]} {[%emt 00:00:51]} 47. Kc2
{[%clk 00:23:38]} {[%emt 00:01:46]} Rh7 {[%clk 00:04:20]} {[%emt 00:00:18]} 48.
a3 {[%clk 00:23:35]} {[%emt 00:00:32]} Rc7 {[%clk 00:04:20]} {[%emt 00:00:29]}
49. Rb1 {[%clk 00:22:12]} {[%emt 00:01:53]} Rh7 {[%clk 00:03:21]} {[%emt
00:01:29]} 50. Rh1 {[%clk 00:20:49]} {[%emt 00:01:53]} Rc7 {[%clk 00:03:50]}
{[%emt 00:00:03]} 51. Rb1 {[%clk 00:21:02]} {[%emt 00:00:16]} 1/2-1/2

[Event "Schack-SM 2024: Mastarklassen-elit"]
[Site "Fortnox Arena, Hejaregatan 5, Vaxjo, Sweden"]
[Date "2024.06.29"]
[Round "1.4"]
[White "Cederstam, Carl"]
[Black "Olsson, William"]
[Result "0-1"]
[TimeControl "90 minutes for 40 moves + 30 minutes for the rest of the game + 30 seconds per move from move one."]
[WhiteTitle "FM"]
[BlackTitle "IM"]
[WhiteElo "2278"]
[BlackElo "2363"]

1. d4 {[%clk 01:30:07]} {[%emt 00:00:52]} d5 {[%clk 01:30:49]} {[%emt
00:00:11]} 2. c4 {[%clk 01:30:21]} {[%emt 00:00:15]} c6 {[%clk 01:31:13]}
{[%emt 00:00:08]} 3. Nc3 {[%clk 01:29:58]} {[%emt 00:00:52]} Nf6 {[%clk
01:31:34]} {[%emt 00:00:09]} 4. e3 {[%clk 01:29:49]} {[%emt 00:00:40]} e6
{[%clk 01:31:56]} {[%emt 00:00:08]} 5. Nf3 {[%clk 01:30:09]} {[%emt 00:00:10]}
Nbd7 {[%clk 01:32:21]} {[%emt 00:00:04]} 6. Bd3 {[%clk 01:29:38]} {[%emt
00:01:01]} dxc4 {[%clk 01:32:40]} {[%emt 00:00:12]} 7. Bxc4 {[%clk 01:30:02]}
{[%emt 00:00:06]} b5 {[%clk 01:32:59]} {[%emt 00:00:10]} 8. Bd3 {[%clk
01:30:25]} {[%emt 00:00:06]} Bb7 {[%clk 01:32:12]} {[%emt 00:01:18]} 9. e4
{[%clk 01:29:55]} {[%emt 00:01:00]} b4 {[%clk 01:32:26]} {[%emt 00:00:16]} 10.
Na4 {[%clk 01:30:18]} {[%emt 00:00:07]} c5 {[%clk 01:32:50]} {[%emt 00:00:07]}
11. e5 {[%clk 01:30:38]} {[%emt 00:00:08]} Nd5 {[%clk 01:33:16]} {[%emt
00:00:05]} 12. O-O {[%clk 01:31:00]} {[%emt 00:00:09]} h6 {[%clk 01:24:26]}
{[%emt 00:09:20]} 13. Re1 {[%clk 01:12:33]} {[%emt 00:18:56]} Be7 {[%clk
01:15:20]} {[%emt 00:09:36]} 14. Bd2 {[%clk 01:05:11]} {[%emt 00:07:51]} Rc8
{[%clk 01:11:41]} {[%emt 00:04:10]} 15. Rc1 {[%clk 01:03:09]} {[%emt 00:02:31]}
Qa5 {[%clk 00:53:55]} {[%emt 00:18:19]} 16. a3 {[%clk 00:55:34]} {[%emt
00:08:04]} O-O {[%clk 00:42:16]} {[%emt 00:12:09]} 17. Nxc5 {[%clk 00:39:14]}
{[%emt 00:16:49]} Nxc5 {[%clk 00:42:34]} {[%emt 00:00:13]} 18. dxc5 {[%clk
00:39:35]} {[%emt 00:00:08]} Bxc5 {[%clk 00:41:22]} {[%emt 00:01:44]} 19. Qe2
{[%clk 00:22:54]} {[%emt 00:17:11]} Qb6 {[%clk 00:33:26]} {[%emt 00:08:27]} 20.
Rxc5 {[%clk 00:14:33]} {[%emt 00:08:49]} Qxc5 {[%clk 00:27:03]} {[%emt
00:06:53]} 21. Qe4 {[%emt 00:02:56]} Rfd8 {[%clk 00:25:42]} 22. Qh7+ {[%clk
00:12:52]} {[%emt 00:01:36]} Kf8 {[%clk 00:26:05]} {[%emt 00:00:08]} 23. Re4
{[%clk 00:12:56]} {[%emt 00:00:25]} bxa3 {[%clk 00:25:41]} {[%emt 00:00:54]} 24.
bxa3 {[%clk 00:12:27]} {[%emt 00:01:01]} Ke7 {[%clk 00:19:07]} {[%emt
00:07:04]} 25. Rb4 {[%clk 00:11:53]} {[%emt 00:01:04]} Nxb4 {[%clk 00:17:02]}
{[%emt 00:02:34]} 26. Bxb4 {[%clk 00:12:22]} {[%emt 00:00:02]} Qxb4 {[%clk
00:17:23]} {[%emt 00:00:09]} 27. axb4 {[%clk 00:12:45]} {[%emt 00:00:06]} Rc1+
{[%clk 00:17:41]} {[%emt 00:00:13]} 28. Bf1 {[%clk 00:13:08]} {[%emt 00:00:06]}
Rdd1 {[%clk 00:17:40]} {[%emt 00:00:31]} 29. h3 {[%clk 00:10:03]} {[%emt
00:03:34]} Rxf1+ {[%clk 00:17:55]} {[%emt 00:00:16]} 30. Kh2 {[%clk 00:10:27]}
{[%emt 00:00:04]} Bxf3 {[%clk 00:16:04]} {[%emt 00:02:23]} 31. gxf3 {[%clk
00:10:24]} {[%emt 00:00:33]} g5 {[%clk 00:15:23]} {[%emt 00:01:12]} 32. f4
{[%clk 00:08:48]} {[%emt 00:02:05]} Rxf2+ {[%clk 00:15:09]} {[%emt 00:00:44]}
33. Kg3 {[%clk 00:09:13]} {[%emt 00:00:04]} Rxf4 {[%clk 00:15:14]} {[%emt
00:00:25]} 34. Qxh6 {[%clk 00:08:56]} {[%emt 00:00:47]} Rc3+ {[%clk 00:15:38]}
{[%emt 00:00:07]} 35. Kg2 {[%clk 00:09:18]} {[%emt 00:00:06]} Rf5 {[%clk
00:16:05]} {[%emt 00:00:04]} 36. Qh8 {[%clk 00:09:27]} {[%emt 00:00:19]} Re3
{[%clk 00:15:34]} {[%emt 00:01:03]} 37. Qb8 {[%clk 00:09:47]} {[%emt 00:00:10]}
Rexe5 {[%clk 00:16:01]} {[%emt 00:00:03]} 38. Qxa7+ {[%clk 00:10:09]} {[%emt
00:00:09]} Kf8 {[%clk 00:16:18]} {[%emt 00:00:11]} 39. Qd4 {[%clk 00:08:54]}
{[%emt 00:01:48]} Kg8 {[%clk 00:15:58]} {[%emt 00:00:49]} 40. Kg3 {[%clk
00:02:58]} {[%emt 00:06:27]} Rd5 {[%clk 00:15:56]} {[%emt 00:00:32]} 41. Qc3
{[%clk 00:03:24]} {[%emt 00:00:03]} Kh7 {[%clk 00:13:33]} {[%emt 00:02:54]} 42.
Kg4 {[%clk 00:02:56]} {[%emt 00:00:56]} Kg6 {[%clk 00:12:39]} {[%emt 00:01:25]}
43. h4 {[%clk 00:01:43]} {[%emt 00:01:43]} gxh4 {[%clk 00:09:47]} {[%emt
00:03:23]} 44. Qc2 {[%clk 00:00:51]} {[%emt 00:01:21]} Rd4+ {[%clk 00:09:37]}
{[%emt 00:00:40]} 45. Kh3 {[%clk 00:01:19]} {[%emt 00:00:01]} Rxb4 {[%clk
00:09:37]} {[%emt 00:00:32]} 46. Qg2+ {[%clk 00:01:25]} {[%emt 00:00:23]} Kh7
{[%clk 00:10:04]} {[%emt 00:00:03]} 47. Qc2 {[%clk 00:01:43]} {[%emt 00:00:12]}
Rbf4 {[%clk 00:10:27]} {[%emt 00:00:06]} 48. Qb1 {[%clk 00:27:13]} {[%emt
00:05:00]} e5 {[%clk 00:40:45]} {[%emt 00:00:12]} 49. Qc2 {[%clk 00:25:49]}
{[%emt 00:01:54]} Rf3+ {[%clk 00:39:24]} {[%emt 00:01:52]} 50. Kg4 {[%clk
00:25:50]} {[%emt 00:00:30]} Kh6 {[%clk 00:39:48]} {[%emt 00:00:05]} 51. Qc6+
{[%clk 00:18:23]} {[%emt 00:07:57]} Rf6 {[%clk 00:40:11]} {[%emt 00:00:09]} 52.
Qa6 {[%clk 00:17:57]} {[%emt 00:00:56]} R3f4+ {[%clk 00:40:29]} {[%emt
00:00:12]} 0-1

[Event "Schack-SM 2024: Mastarklassen-elit"]
[Site "Fortnox Arena, Hejaregatan 5, Vaxjo, Sweden"]
[Date "2024.06.29"]
[Round "1.5"]
[White "Wiedenkeller, Michael"]
[Black "Lundin, Jan"]
[Result "1-0"]
[TimeControl "90 minutes for 40 moves + 30 minutes for the rest of the game + 30 seconds per move from move one."]
[WhiteTitle "IM"]
[BlackTitle "FM"]
[WhiteElo "2417"]
[BlackElo "2246"]

1. d4 {[%clk 01:30:41]} {[%emt 00:00:19]} f5 {[%clk 01:30:29]} {[%emt
00:00:31]} 2. Nc3 {[%clk 01:30:41]} {[%emt 00:00:31]} Nf6 {[%clk 01:30:15]}
{[%emt 00:00:44]} 3. Bg5 {[%clk 01:30:55]} {[%emt 00:00:15]} d5 {[%clk
01:29:47]} {[%emt 00:01:00]} 4. Bxf6 {[%clk 01:30:02]} {[%emt 00:01:21]} exf6
{[%clk 01:30:09]} {[%emt 00:00:08]} 5. e3 {[%clk 01:30:19]} {[%emt 00:00:14]}
Be6 {[%clk 01:29:16]} {[%emt 00:01:23]} 6. Bd3 {[%clk 01:30:02]} {[%emt
00:00:46]} Nc6 {[%clk 01:28:04]} {[%emt 00:01:42]} 7. Nge2 {[%clk 01:23:29]}
{[%emt 00:07:04]} Qd7 {[%clk 01:21:54]} {[%emt 00:06:40]} 8. Nf4 {[%clk
01:19:06]} {[%emt 00:04:53]} O-O-O {[%clk 01:17:06]} {[%emt 00:05:18]} 9. a3
{[%clk 01:07:56]} {[%emt 00:11:39]} Kb8 {[%clk 01:15:33]} {[%emt 00:02:04]} 10.
Qf3 {[%clk 01:04:47]} {[%emt 00:03:39]} Bf7 {[%clk 01:10:35]} {[%emt 00:05:27]}
11. h3 {[%clk 00:59:44]} {[%emt 00:05:34]} h5 {[%clk 01:08:21]} {[%emt
00:02:44]} 12. O-O-O {[%clk 00:56:03]} {[%emt 00:04:11]} h4 {[%clk 01:05:06]}
{[%emt 00:03:44]} 13. Nfe2 {[%clk 00:50:34]} {[%emt 00:06:01]} Ne7 {[%clk
01:03:29]} {[%emt 00:02:05]} 14. g4 {[%clk 00:46:20]} {[%emt 00:04:44]} g5
{[%clk 00:46:34]} {[%emt 00:17:26]} 15. Qg2 {[%clk 00:29:32]} {[%emt 00:17:17]}
Be6 {[%clk 00:41:07]} {[%emt 00:05:58]} 16. Rdg1 {[%clk 00:24:36]} {[%emt
00:05:26]} Nc6 {[%clk 00:33:52]} {[%emt 00:07:44]} 17. Kb1 {[%clk 00:20:52]}
{[%emt 00:04:15]} Na5 {[%clk 00:30:05]} {[%emt 00:04:19]} 18. f3 {[%emt
00:10:53]} c5 {[%clk 00:21:59]} 19. gxf5 {[%clk 00:14:07]} {[%emt 00:05:28]}
Bxf5 {[%clk 00:17:26]} {[%emt 00:05:04]} 20. Bxf5 {[%clk 00:11:11]} {[%emt
00:03:24]} Qxf5 {[%clk 00:17:48]} {[%emt 00:00:08]} 21. e4 {[%clk 00:10:39]}
{[%emt 00:01:02]} dxe4 {[%clk 00:16:19]} {[%emt 00:01:59]} 22. fxe4 {[%clk
00:11:07]} {[%emt 00:00:02]} Qe6 {[%clk 00:14:22]} {[%emt 00:02:26]} 23. Rd1
{[%clk 00:08:59]} {[%emt 00:02:40]} Nc4 {[%clk 00:13:39]} {[%emt 00:01:12]} 24.
Nd5 {[%clk 00:07:12]} {[%emt 00:02:18]} Rxd5 {[%clk 00:11:28]} {[%emt
00:02:40]} 25. exd5 {[%clk 00:07:41]} {[%emt 00:00:02]} Qb6 {[%clk 00:11:40]}
{[%emt 00:00:18]} 26. b3 {[%clk 00:08:07]} {[%emt 00:00:04]} Nxa3+ {[%clk
00:08:15]} {[%emt 00:03:54]} 27. Kc1 {[%clk 00:07:51]} {[%emt 00:00:48]} c4
{[%clk 00:06:54]} {[%emt 00:01:50]} 28. Qf3 {[%clk 00:06:55]} {[%emt 00:01:25]}
Bd6 {[%clk 00:07:07]} {[%emt 00:00:18]} 29. Kd2 {[%clk 00:03:58]} {[%emt
00:03:27]} Qa5+ {[%clk 00:02:49]} {[%emt 00:04:49]} 30. Ke3 {[%clk 00:02:24]}
{[%emt 00:02:04]} f5 {[%clk 00:01:43]} {[%emt 00:01:35]} 31. Kf2 {[%clk
00:02:04]} {[%emt 00:00:50]} g4 {[%clk 00:01:42]} {[%emt 00:00:32]} 32. hxg4
{[%clk 00:00:54]} {[%emt 00:01:41]} fxg4 {[%clk 00:02:02]} {[%emt 00:00:09]} 33.
Qe4 {[%clk 00:00:51]} {[%emt 00:00:33]} Rf8+ {[%clk 00:01:39]} {[%emt
00:00:54]} 34. Kg1 {[%clk 00:01:06]} {[%emt 00:00:15]} Qd8 {[%clk 00:01:07]}
{[%emt 00:01:01]} 35. Nc3 {[%clk 00:00:39]} {[%emt 00:00:58]} Qf6 {[%clk
00:00:38]} {[%emt 00:01:00]} 36. Qe2 {[%clk 00:01:02]} {[%emt 00:00:07]} Bg3
{[%clk 00:00:32]} {[%emt 00:00:35]} 37. Ne4 {[%clk 00:01:27]} {[%emt 00:00:05]}
Qf4 {[%clk 00:00:42]} {[%emt 00:00:20]} 38. Rf1 {[%clk 00:01:45]} {[%emt
00:00:12]} Qxf1+ {[%clk 00:00:33]} {[%emt 00:00:38]} 39. Qxf1 {[%clk 00:02:14]}
{[%emt 00:00:02]} Rxf1+ {[%emt 00:00:24]} 40. Kxf1 {[%clk 00:02:38]} {[%emt
00:00:04]} Nxc2 {[%clk 00:00:46]} {[%emt 00:00:24]} 41. bxc4 {[%clk 00:29:09]}
{[%emt 00:04:01]} Ne3+ {[%clk 00:29:09]} {[%emt 00:02:06]} 42. Ke2 {[%clk
00:26:34]} {[%emt 00:03:05]} Nf5 {[%clk 00:27:25]} {[%emt 00:02:15]} 43. Kd3
{[%clk 00:22:29]} {[%emt 00:04:35]} h3 {[%clk 00:26:24]} {[%emt 00:01:30]} 44.
Nf6 {[%clk 00:21:16]} {[%emt 00:01:43]} Nh6 {[%clk 00:26:06]} {[%emt 00:00:47]}
45. c5 {[%clk 00:17:19]} {[%emt 00:04:29]} Bh4 {[%clk 00:23:05]} {[%emt
00:03:30]} 46. Nd7+ {[%clk 00:17:21]} {[%emt 00:00:28]} Kc8 {[%clk 00:18:06]}
{[%emt 00:05:30]} 47. Ne5 {[%clk 00:17:39]} {[%emt 00:00:12]} Bg3 {[%clk
00:14:44]} {[%emt 00:03:52]} 48. Ke4 {[%clk 00:14:47]} {[%emt 00:03:22]} Kd8
{[%clk 00:12:50]} {[%emt 00:02:25]} 49. d6 {[%clk 00:13:21]} {[%emt 00:01:55]}
Ke8 {[%clk 00:04:37]} {[%emt 00:08:43]} 50. Kd5 {[%clk 00:05:02]} {[%emt
00:08:49]} h2 {[%clk 00:04:03]} {[%emt 00:01:03]} 51. Ke6 {[%clk 00:03:43]}
{[%emt 00:01:50]} Bf4 {[%clk 00:01:11]} {[%emt 00:03:21]} 52. c6 {[%clk
00:03:41]} {[%emt 00:00:32]} Bxe5 {[%clk 00:00:43]} {[%emt 00:00:59]} 53. c7
{[%clk 00:03:30]} {[%emt 00:00:41]} 1-0